{"text_format":"3","workbook":"xlsx","n_sheets":3,"sheets":["Inizio","Portfolio","Distribuzione risorse"],"not_rendered":{"charts":1,"images":6,"defined_names":1},"read":"whole","date_system":"1900"}

{"sheet":"Inizio","index":0,"n_rows":28,"n_cols":12,"rows_kept":28,"merged":[[0,1,0,12],[2,1,2,11],[6,1,6,3],[6,11,6,12],[27,2,27,4]]}
[null,"GESTIONE DEGLI INVESTIMENTI"]
[]
[null,"Il modello Gestione degli investimenti consente di seguire l’andamento degli investimenti e la distribuzione dei fondi. I dati sulle azioni di Excel mantengono aggiornato il portfolio con i prezzi correnti e il dettaglio dei fondi. Sono disponibili due fogli di lavoro, Portfolio e Distribuzione dei fondi, descritti di seguito. Nota: I dati sulle azioni di Excel sono una funzionalità dell’abbonamento a Office 365. "]
[]
[null,"Portfolio"]
[]
[null,"Aggiungere gli investimenti, i simboli azionari, i nomi delle società o dei fondi nei campi di esempio o aggiungere delle righe aggiuntive. Selezionare una categoria di attività e immettere il numero di azioni.",{"$nulls":9},"Fare clic sul pulsante Aggiungi colonna per aggiungere colonne come Simboli azionari o Valuta.\n"]
{"$rows_empty":16}
[null,"Per aggiornare i dati, fare clic su un qualsiasi titolo azionario. Nella scheda Dati nel gruppo Query e connessioni fare clic su Aggiorna tutti o premere CTRL+ALT+F5."]
[]
[null,"Distribuzione risorse"]
[]
[null,"Cambiare Categorie e Obiettivo per personalizzare con gli obiettivi del portfolio.","Quando una categoria di fondi supera la Soglia, gli importi verranno evidenziati in giallo."]

{"sheet":"Portfolio","index":1,"n_rows":12,"n_cols":9,"rows_kept":12,"merged":[[0,1,0,3]]}
[null,"GESTIONE DEGLI INVESTIMENTI"]
[]
[null,"Portfolio"]
[]
[null,"Società","Categoria","Quote","Prezzo","Cambio","Cambio (%)","Portfolio %","Valore"]
[null,{"$error":"#VALUE!"},"Azioni USA",{"v":1200,"d":"1,200"},{"$f":"_FV(TabellaPortfolio[[#This Row],[Società]],\"Price\")","v":{"v":277.66,"d":"277.66 €"}},{"$f":"_FV(TabellaPortfolio[[#This Row],[Società]],\"Change\")","v":{"v":5.37,"d":"5.37 €"}},{"$f":"_FV(TabellaPortfolio[[#This Row],[Società]],\"Change (%)\",TRUE)","v":{"v":0.019722,"d":"1.97%"}},{"$f":"IFERROR(I6/SUBTOTAL(109,#REF!),\"\")","v":""},{"$f":"D6 * E6","v":{"v":333192.00000000006,"d":"333,192.00 €"}}]
[null,{"$error":"#VALUE!"},"Obbligazioni",{"v":1300,"d":"1,300"},{"$f":"_FV(TabellaPortfolio[[#This Row],[Società]],\"Price\")","v":{"v":9.75,"d":"9.75 €"}},{"$f":"_FV(TabellaPortfolio[[#This Row],[Società]],\"Change\")","v":{"v":0.03,"d":"0.03 €"}},{"$f":"_FV(TabellaPortfolio[[#This Row],[Società]],\"Change (%)\",TRUE)","v":{"v":3.0859999999999998E-3,"d":"0.31%"}},{"$f":"IFERROR(I7/SUBTOTAL(109,#REF!),\"\")","v":""},{"v":12675,"d":"12,675.00 €"}]
[null,{"$error":"#VALUE!"},"Azioni internazionali",{"v":1200,"d":"1,200"},{"$f":"_FV(TabellaPortfolio[[#This Row],[Società]],\"Price\")","v":{"v":28.81,"d":"28.81 €"}},{"$f":"_FV(TabellaPortfolio[[#This Row],[Società]],\"Change\")","v":{"v":0.14,"d":"0.14 €"}},{"$f":"_FV(TabellaPortfolio[[#This Row],[Società]],\"Change (%)\",TRUE)","v":{"v":0.004883,"d":"0.49%"}},{"$f":"IFERROR(I8/SUBTOTAL(109,#REF!),\"\")","v":""},{"v":34572,"d":"34,572.00 €"}]
[null,{"$error":"#VALUE!"},"Contanti",{"v":10000,"d":"10,000"},{"$f":"_FV(TabellaPortfolio[[#This Row],[Società]],\"Price\")","v":{"$error":"#VALUE!"}},{"$f":"_FV(TabellaPortfolio[[#This Row],[Società]],\"Change\")","v":{"$error":"#VALUE!"}},{"$f":"_FV(TabellaPortfolio[[#This Row],[Società]],\"Change (%)\",TRUE)","v":{"$error":"#VALUE!"}},{"$f":"IFERROR(I9/SUBTOTAL(109,#REF!),\"\")","v":""},{"$error":"#VALUE!"}]
[null,{"$error":"#VALUE!"},"Beni immobili",125,{"$f":"_FV(TabellaPortfolio[[#This Row],[Società]],\"Price\")","v":{"v":108.86,"d":"108.86 €"}},{"$f":"_FV(TabellaPortfolio[[#This Row],[Società]],\"Change\")","v":{"v":-1.83,"d":"-1.83 €"}},{"$f":"_FV(TabellaPortfolio[[#This Row],[Società]],\"Change (%)\",TRUE)","v":{"v":-0.016533,"d":"-1.65%"}},{"$f":"IFERROR(I10/SUBTOTAL(109,#REF!),\"\")","v":""},{"v":13607.5,"d":"13,607.50 €"}]
[null,{"$error":"#VALUE!"},"Merci",100,{"$f":"_FV(TabellaPortfolio[[#This Row],[Società]],\"Price\")","v":{"v":185.74,"d":"185.74 €"}},{"$f":"_FV(TabellaPortfolio[[#This Row],[Società]],\"Change\")","v":{"v":2.3,"d":"2.30 €"}},{"$f":"_FV(TabellaPortfolio[[#This Row],[Società]],\"Change (%)\",TRUE)","v":{"v":0.012538,"d":"1.25%"}},{"$f":"IFERROR(I11/SUBTOTAL(109,#REF!),\"\")","v":""},{"v":18574,"d":"18,574.00 €"}]
[null,"Totale",{"$nulls":6},{"$f":"IFERROR(SUBTOTAL(109,TabellaPortfolio[Valore]),\"\")","v":""}]

{"sheet":"Distribuzione risorse","index":2,"n_rows":25,"n_cols":7,"rows_kept":25,"merged":[[0,1,0,6]]}
[null,"GESTIONE DEGLI INVESTIMENTI"]
[]
[null,"Distribuzione risorse"]
{"$rows_empty":15}
[null,"Categoria","Obiettivo","Effettivo","Differenza","Soglia","Valore"]
[null,"Azioni USA",{"v":0.55,"d":"55%"},{"$f":"IFERROR(G20/SUBTOTAL(109,TableDistribuzionerisorse[Valore]),\"\")","v":""},{"$f":"D20 - C20","v":{"$error":"#VALUE!"}},{"$f":"MIN(5%, $C20 * 25%)","v":{"v":0.05,"d":"5%"}},{"$f":"SUMIF(TabellaPortfolio[Categoria], B20, TabellaPortfolio[Valore])","v":{"v":333192.00000000006,"d":"333,192.00 €"}}]
[null,"Azioni internazionali",{"v":0.2,"d":"20%"},{"$f":"IFERROR(G21/SUBTOTAL(109,TableDistribuzionerisorse[Valore]),\"\")","v":""},{"$error":"#VALUE!"},{"v":0.05,"d":"5%"},{"$f":"SUMIF(TabellaPortfolio[Categoria], B21, TabellaPortfolio[Valore])","v":{"v":34572,"d":"34,572.00 €"}}]
[null,"Obbligazioni",{"v":0.1,"d":"10%"},{"$f":"IFERROR(G22/SUBTOTAL(109,TableDistribuzionerisorse[Valore]),\"\")","v":""},{"$error":"#VALUE!"},{"v":0.025,"d":"3%"},{"$f":"SUMIF(TabellaPortfolio[Categoria], B22, TabellaPortfolio[Valore])","v":{"v":12675,"d":"12,675.00 €"}}]
[null,"Contanti",{"v":0.05,"d":"5%"},{"$f":"IFERROR(G23/SUBTOTAL(109,TableDistribuzionerisorse[Valore]),\"\")","v":""},{"$error":"#VALUE!"},{"v":0.0125,"d":"1%"},{"$f":"SUMIF(TabellaPortfolio[Categoria], B23, TabellaPortfolio[Valore])","v":{"$error":"#VALUE!"}}]
[null,"Beni immobili",{"v":0.05,"d":"5%"},{"$f":"IFERROR(G24/SUBTOTAL(109,TableDistribuzionerisorse[Valore]),\"\")","v":""},{"$error":"#VALUE!"},{"v":0.0125,"d":"1%"},{"$f":"SUMIF(TabellaPortfolio[Categoria], B24, TabellaPortfolio[Valore])","v":{"v":13607.5,"d":"13,607.50 €"}}]
[null,"Merci",{"v":0.05,"d":"5%"},{"$f":"IFERROR(G25/SUBTOTAL(109,TableDistribuzionerisorse[Valore]),\"\")","v":""},{"$error":"#VALUE!"},{"v":0.0125,"d":"1%"},{"$f":"SUMIF(TabellaPortfolio[Categoria], B25, TabellaPortfolio[Valore])","v":{"v":18574,"d":"18,574.00 €"}}]